bitfinex/quotes_BTCUSD_20240811
["timestamp","ask_amount","ask_price","bid_price","bid_amount"]
[1723385618977,0.00831,60508.0,60507.0,2.24554184]
[1723385620438,0.1297,60523.0,60507.0,2.24554184]
[1723385620439,0.49107874,60536.0,60527.0,1.312155]
[1723385620630,0.49107874,60536.0,60527.0,2.67308719]
[1723385620906,0.2276,60555.0,60530.0,0.611135]
[1723385621115,0.2276,60555.0,60530.0,2.60820719]
[1723385621320,0.2276,60555.0,60530.0,2.74918385]
[1723385621494,0.2276,60555.0,60548.0,0.819273]
[1723385621720,0.2276,60555.0,60548.0,0.809273]
[1723385621920,0.2276,60555.0,60548.0,1.31565636]
[1723385622126,0.1297,60558.0,60548.0,1.31565636]
[1723385622534,0.1297,60558.0,60548.0,1.32565636]
[1723385622705,0.1297,60558.0,60548.0,1.31565636]
[1723385622915,0.08184646,60557.0,60548.0,1.32565636]
[1723385623094,0.115596,60556.0,60548.0,0.86321436]
[1723385623305,0.1298,60549.0,60548.0,0.86521436]
[1723385623713,0.1298,60549.0,60548.0,1.09643536]
[1723385624598,0.0001,60549.0,60548.0,1.09643536]
[1723385624773,0.0001,60549.0,60548.0,1.085522]
[1723385625224,0.0001,60549.0,60548.0,1.316743]
[1723385625767,0.0001,60549.0,60548.0,1.085522]
[1723385625984,0.0001,60549.0,60548.0,1.083522]
[1723385626185,0.0001,60549.0,60548.0,1.085522]
[1723385626386,0.0001,60549.0,60548.0,1.086522]
[1723385626591,0.0001,60549.0,60548.0,1.085522]
[1723385626790,0.0001,60549.0,60548.0,1.083522]
[1723385627038,0.0001,60549.0,60548.0,1.087522]
[1723385627195,0.000931,60549.0,60548.0,1.087522]
[1723385627539,0.000931,60549.0,60548.0,1.449043]
[1723385627778,0.000931,60549.0,60548.0,1.446043]
[1723385627978,0.000931,60549.0,60548.0,1.305743]
[1723385628152,0.000931,60549.0,60548.0,1.315743]
[1723385629354,0.000931,60549.0,60548.0,1.084522]
[1723385629525,0.000931,60549.0,60548.0,1.077522]
[1723385629728,0.000931,60549.0,60548.0,1.307743]
[1723385629933,0.000931,60549.0,60548.0,1.306743]
[1723385630290,0.000931,60549.0,60548.0,1.312743]
[1723385630500,0.000931,60549.0,60548.0,1.412343]
[1723385630654,0.000931,60549.0,60548.0,1.427343]
[1723385630879,0.000931,60549.0,60548.0,1.411343]
[1723385631109,0.000931,60549.0,60548.0,1.406343]
[1723385631319,0.000931,60549.0,60548.0,1.435343]
[1723385631628,0.000931,60549.0,60548.0,1.434343]
[1723385632325,0.000931,60549.0,60548.0,1.322743]
[1723385633075,0.000931,60549.0,60548.0,1.332743]
[1723385633279,0.000931,60549.0,60548.0,1.334743]
[1723385633524,0.000931,60549.0,60548.0,1.314743]
[1723385633752,0.000931,60549.0,60548.0,1.334743]
[1723385633956,0.000931,60549.0,60548.0,1.324743]
[1723385634447,0.000931,60549.0,60548.0,1.321743]
[1723385634579,0.000931,60549.0,60548.0,1.332743]
[1723385634779,0.000931,60549.0,60548.0,1.325743]
[1723385634984,0.000931,60549.0,60548.0,1.335743]
[1723385635182,0.000931,60549.0,60548.0,1.50955792]
[1723385636050,0.000931,60549.0,60548.0,1.52955792]
[1723385636214,0.000931,60549.0,60548.0,1.64985792]
[1723385636495,0.000931,60549.0,60548.0,1.63885792]
[1723385636694,0.000931,60549.0,60548.0,1.65085792]
[1723385636900,0.000931,60549.0,60548.0,1.66385792]
[1723385637316,0.000931,60549.0,60548.0,1.339743]
[1723385638338,0.000931,60549.0,60548.0,1.349743]
[1723385638543,0.000931,60549.0,60548.0,1.480043]
[1723385639863,0.000931,60549.0,60548.0,1.691264]
[1723385640091,0.000931,60549.0,60548.0,1.711264]
[1723385640247,0.000931,60549.0,60548.0,1.68725432]
[1723385640585,0.000931,60549.0,60548.0,1.47603332]
[1723385640988,0.000931,60549.0,60548.0,1.57763332]
[1723385641401,0.000931,60549.0,60548.0,1.55763332]
[1723385641605,0.000931,60549.0,60548.0,1.9459901]
[1723385642021,0.000931,60549.0,60548.0,2.13180502]
[1723385642238,0.000931,60549.0,60548.0,2.23180502]
[1723385642455,0.000931,60549.0,60548.0,2.22980502]
[1723385642653,0.000931,60549.0,60548.0,1.8147691]
[1723385643301,0.000931,60549.0,60548.0,2.23180502]
[1723385643554,0.0001,60562.0,60561.0,0.829098]
[1723385643753,0.0001,60562.0,60561.0,1.754868]
[1723385644793,0.0001,60562.0,60561.0,1.98523005]
[1723385644989,0.0001,60562.0,60561.0,2.01523005]
[1723385645190,0.0001,60562.0,60561.0,2.15234008]
[1723385645404,0.0001,60562.0,60561.0,2.13234008]
[1723385646240,0.0001,60562.0,60561.0,2.14234008]
[1723385646429,0.0001,60562.0,60561.0,2.13334008]
[1723385646804,0.0001,60562.0,60561.0,2.15234008]
[1723385647004,0.0001,60562.0,60561.0,2.16334008]
[1723385647208,0.0001,60562.0,60561.0,2.17434008]
[1723385647880,0.0001,60562.0,60561.0,2.16334008]
[1723385648084,0.0001,60562.0,60561.0,2.14333874]
[1723385648243,0.0001,60562.0,60561.0,2.16633874]
[1723385648665,0.0001,60562.0,60561.0,2.18033874]
[1723385649123,0.0001,60562.0,60561.0,2.43215366]
[1723385649314,0.0084,60569.0,60568.0,1.061707]
[1723385649531,0.0084,60569.0,60568.0,2.15644061]
[1723385649729,0.0084,60569.0,60568.0,2.38758561]
[1723385650812,0.0084,60569.0,60568.0,2.40158561]
[1723385651244,0.0084,60569.0,60568.0,1.89212569]
[1723385651433,0.0084,60569.0,60568.0,1.78792569]
[1723385651641,0.0084,60569.0,60568.0,1.77392569]
[1723385651974,0.0084,60569.0,60568.0,1.78792569]
[1723385652626,0.0084,60569.0,60568.0,1.77391195]
[1723385653063,0.0084,60569.0,60568.0,1.78991195]
[1723385653266,0.0084,60569.0,60568.0,1.77591156]
[1723385653388,0.0084,60569.0,60568.0,1.75991156]
[1723385653779,0.0084,60569.0,60568.0,1.78791156]
[1723385653977,0.0084,60569.0,60568.0,1.77391156]
[1723385654159,0.0084,60569.0,60568.0,1.78791156]
[1723385654594,0.0084,60569.0,60568.0,1.78791056]
[1723385654806,0.0084,60569.0,60568.0,2.38456876]
[1723385655024,0.0084,60569.0,60568.0,2.38356876]
[1723385655203,0.2068,60589.0,60588.0,0.356602]
[1723385655422,0.2068,60589.0,60588.0,0.58767]
[1723385655624,0.2068,60589.0,60588.0,1.08282]
[1723385655762,0.2068,60589.0,60588.0,1.313888]
[1723385655960,0.0001,60589.0,60588.0,1.303888]
[1723385656490,0.0001,60589.0,60588.0,1.323888]
[1723385657197,0.0001,60589.0,60588.0,1.313888]
[1723385657399,0.0001,60589.0,60588.0,1.322888]
[1723385658322,0.0001,60589.0,60588.0,1.332888]
[1723385658724,0.0001,60589.0,60588.0,1.313888]
[1723385659023,0.0001,60589.0,60588.0,1.339888]
[1723385659218,0.0001,60589.0,60588.0,1.329888]
[1723385659428,0.0001,60589.0,60588.0,1.331888]
[1723385659667,0.0001,60589.0,60588.0,1.52470292]
[1723385659927,0.0001,60589.0,60588.0,1.51570292]
[1723385660516,0.0001,60589.0,60588.0,1.321888]
[1723385660716,0.0001,60589.0,60588.0,1.313888]
[1723385660922,0.0001,60589.0,60588.0,1.322888]
[1723385661135,0.0001,60589.0,60588.0,1.09182]
[1723385661366,0.0001,60589.0,60588.0,1.08282]
[1723385661772,0.0001,60589.0,60588.0,1.09082]
[1723385662090,0.0001,60589.0,60588.0,1.09182]
[1723385662282,0.0001,60589.0,60588.0,1.313888]
[1723385662484,0.0001,60589.0,60588.0,1.331888]
[1723385662918,0.0001,60589.0,60588.0,1.322888]
[1723385663356,0.0001,60589.0,60588.0,1.330888]
[1723385663553,0.0001,60589.0,60588.0,1.322888]
[1723385664040,0.0001,60589.0,60588.0,1.09182]
[1723385664166,0.0001,60589.0,60588.0,1.09982]
[1723385664368,0.00093,60589.0,60588.0,1.09982]
[1723385664714,0.10663,60589.0,60588.0,1.09182]
[1723385664853,0.20763,60589.0,60588.0,0.51415]
[1723385665050,0.554227,60589.0,60588.0,0.51415]
[1723385665252,0.323162,60589.0,60588.0,0.52315]
[1723385665464,0.554227,60589.0,60588.0,0.52315]
[1723385665843,0.554227,60589.0,60588.0,0.50515]
[1723385665844,0.323162,60589.0,60588.0,0.50515]
[1723385666001,0.323162,60589.0,60588.0,0.51415]
[1723385666183,0.323162,60589.0,60588.0,0.50515]
[1723385666386,0.94910692,60589.0,60588.0,0.50515]
[1723385666599,0.94910692,60589.0,60588.0,0.50415]
[1723385666809,1.18017192,60589.0,60588.0,0.51415]
[1723385667131,0.94910692,60589.0,60588.0,0.52315]
[1723385667606,0.94910692,60589.0,60588.0,0.51415]
[1723385667991,0.94910692,60589.0,60588.0,0.51515]
[1723385668209,0.94910692,60589.0,60588.0,0.50515]
[1723385668434,0.94910692,60589.0,60588.0,0.49615]
[1723385668686,1.20617192,60589.0,60588.0,0.49615]
[1723385668963,1.30317192,60589.0,60588.0,0.49615]
[1723385669427,1.30617192,60589.0,60588.0,0.49715]
[1723385669624,1.30317192,60589.0,60588.0,0.49615]
[1723385670090,1.70074748,60589.0,60588.0,0.49715]
[1723385670326,1.47968248,60589.0,60588.0,0.49615]
[1723385670665,1.31817192,60589.0,60588.0,0.49715]
[1723385671243,1.54723692,60589.0,60588.0,0.49615]
[1723385671737,1.54923692,60589.0,60588.0,0.40965]
[1723385671739,1.54923692,60589.0,60588.0,0.32215]
[1723385671948,1.60330551,60589.0,60588.0,0.32215]
[1723385672985,2.27230551,60589.0,60588.0,0.185254]
[1723385673187,1.51230551,60589.0,60588.0,0.170144]
[1723385673399,1.56153487,60589.0,60588.0,0.170144]
[1723385673604,1.56153487,60589.0,60588.0,0.002]
[1723385674124,1.56155412,60589.0,60588.0,0.002]
[1723385674610,1.56632461,60589.0,60588.0,0.002]
[1723385675102,1.51188103,60589.0,60588.0,0.002]
[1723385675570,1.50188103,60589.0,60588.0,0.002]
[1723385675779,1.55114285,60589.0,60588.0,0.002]
[1723385675986,1.50188103,60589.0,60588.0,0.002]
[1723385676394,1.44823692,60589.0,60588.0,0.002]
[1723385676545,1.99823692,60589.0,60588.0,0.002]
[1723385677936,1.20717192,60589.0,60588.0,0.002]
[1723385679410,1.20417192,60589.0,60588.0,0.001]
[1723385679561,1.20417192,60589.0,60588.0,0.0029119]
[1723385679765,1.21817192,60589.0,60588.0,0.0029119]
[1723385679942,1.21617192,60589.0,60588.0,0.0019119]
[1723385680370,1.21617192,60589.0,60588.0,0.0029119]
[1723385680371,1.22917192,60589.0,60588.0,0.0029119]
[1723385680777,1.21617192,60589.0,60588.0,0.0019119]
[1723385681106,1.56482162,60589.0,60588.0,0.0009119]
[1723385681275,1.66873692,60589.0,60588.0,0.0029119]
[1723385681655,0.681222,60572.0,60571.0,0.01]
[1723385681878,0.84503692,60572.0,60571.0,0.01]
[1723385682935,0.84503692,60572.0,60571.0,0.013]
[1723385683557,1.07616592,60572.0,60571.0,0.007]
[1723385684293,1.07616592,60572.0,60571.0,0.003]
[1723385684711,1.10216592,60572.0,60571.0,0.003]
[1723385686082,1.10216592,60572.0,60569.0,0.000913]
[1723385686083,0.577842,60570.0,60569.0,0.000913]
[1723385686222,0.74165692,60570.0,60569.0,0.000913]
[1723385687355,0.51051992,60570.0,60569.0,0.000913]
[1723385688252,0.27938292,60570.0,60569.0,0.000913]
[1723385688547,0.74165692,60570.0,60569.0,0.010913]
[1723385688928,0.51051992,60570.0,60569.0,0.010913]
[1723385689134,0.27938292,60570.0,60569.0,0.010913]
[1723385689915,0.28038292,60570.0,60569.0,0.010913]
[1723385690115,0.28038292,60570.0,60569.0,0.000913]
[1723385690298,0.28038292,60570.0,60569.0,0.010913]
[1723385690498,0.51151992,60570.0,60569.0,0.010913]
[1723385691156,0.28038292,60570.0,60569.0,0.010913]
[1723385691555,0.51151992,60570.0,60569.0,0.010913]
[1723385692833,1.06719392,60570.0,60569.0,0.000913]
[1723385694077,1.09019392,60570.0,60569.0,0.000913]
[1723385695165,1.19019392,60570.0,60569.0,0.000913]
[1723385695379,2.74142686,60570.0,60569.0,0.000913]
[1723385695599,2.51028986,60570.0,60569.0,0.000913]
[1723385695814,2.51026458,60570.0,60569.0,0.000913]
[1723385696230,1.00272758,60570.0,60569.0,0.001913]
[1723385696437,0.61691992,60570.0,60569.0,0.011913]
[1723385696644,0.51151992,60570.0,60569.0,0.010913]
[1723385696852,0.74265692,60570.0,60569.0,0.010913]
[1723385697038,0.75565692,60570.0,60569.0,0.011913]
[1723385697904,0.75565692,60570.0,60569.0,0.012913]
[1723385697905,0.76965692,60570.0,60569.0,0.012913]
[1723385698109,0.75565692,60570.0,60569.0,0.011913]
[1723385698312,0.52451992,60570.0,60569.0,0.011913]
[1723385698513,0.52451992,60570.0,60569.0,0.012913]
[1723385698721,0.52451992,60570.0,60569.0,0.011913]
[1723385698722,0.52051992,60570.0,60569.0,0.011913]
[1723385699112,0.52951992,60570.0,60569.0,0.012913]
[1723385700063,0.76065692,60570.0,60569.0,0.012913]
[1723385700269,0.52951992,60570.0,60569.0,0.012913]
[1723385701618,0.76065692,60570.0,60569.0,0.012913]
[1723385701827,0.76065692,60570.0,60569.0,0.002913]
[1723385702053,0.29838292,60570.0,60569.0,0.012913]
[1723385702256,0.52951992,60570.0,60569.0,0.012913]
[1723385702485,0.76065692,60570.0,60569.0,0.012913]
[1723385702653,0.99179392,60570.0,60569.0,0.012913]
[1723385702857,0.99179392,60570.0,60569.0,0.002913]
[1723385704226,1.01479392,60570.0,60569.0,0.002913]
[1723385706127,2.28019392,60570.0,60569.0,0.002913]
[1723385707907,2.4223751,60570.0,60569.0,0.002913]
[1723385708327,2.47683556,60570.0,60569.0,0.002913]
[1723385709289,2.3346751,60570.0,60569.0,0.002913]
[1723385709526,2.04905692,60570.0,60569.0,0.002913]
[1723385710680,1.44821492,60570.0,60569.0,0.086513]
[1723385710885,0.019,60570.0,60569.0,0.748765]
[1723385711106,0.019,60570.0,60569.0,1.1270235]
[1723385712060,0.01,60570.0,60569.0,1.3571645]
[1723385712271,0.4713,60583.0,60582.0,0.514636]
[1723385712675,0.4713,60583.0,60582.0,0.283545]
[1723385714119,0.75065792,60583.0,60582.0,0.168]
[1723385714267,0.75065792,60583.0,60582.0,0.0736]
[1723385714268,0.98174492,60583.0,60582.0,0.0736]
[1723385714481,0.75065792,60583.0,60582.0,0.0836]
[1723385714689,0.231095,60581.0,60578.0,0.01]
[1723385714915,0.36121038,60580.0,60579.0,0.01]
[1723385715315,0.59230938,60580.0,60579.0,0.01]
[1723385715527,0.82340838,60580.0,60579.0,0.01]
[1723385715859,0.346654,60579.0,60578.0,0.01]
[1723385716049,0.51046892,60579.0,60578.0,0.01]
[1723385716250,0.16381492,60579.0,60578.0,0.01]
[1723385716504,0.003,60583.0,60579.0,0.0844]
[1723385716712,0.003,60583.0,60582.0,0.01]
[1723385716909,0.231076,60586.0,60582.0,0.0836]
[1723385717140,0.231076,60586.0,60585.0,0.01]
[1723385717566,0.57769,60586.0,60585.0,0.01]
[1723385718323,0.74150492,60586.0,60585.0,0.01]
[1723385719327,0.74150492,60586.0,60585.0,0.011]
[1723385719895,0.51042892,60586.0,60585.0,0.011]
[1723385720077,0.17281492,60586.0,60585.0,0.012]
[1723385720228,0.17281492,60586.0,60585.0,0.28554]
[1723385720411,0.17281492,60586.0,60585.0,0.17]
[1723385720617,0.51942892,60586.0,60585.0,0.0856]
[1723385721210,0.51942892,60586.0,60585.0,0.0746]
[1723385721529,0.51942892,60586.0,60585.0,0.0736]
[1723385721530,0.51042892,60586.0,60585.0,0.0736]
[1723385721890,0.51042892,60586.0,60585.0,0.0846]
[1723385721891,0.51642892,60586.0,60585.0,0.0846]
[1723385722111,0.51442892,60586.0,60585.0,0.0836]
[1723385722413,0.51742892,60586.0,60585.0,0.0846]
[1723385722956,0.52542892,60586.0,60585.0,0.0756]
[1723385723169,0.52542892,60586.0,60585.0,0.002]
[1723385723498,0.52542892,60586.0,60585.0,0.012]
[1723385724590,0.52542892,60586.0,60585.0,0.002]
[1723385725754,0.52542892,60586.0,60585.0,0.012]
[1723385725965,0.29435292,60586.0,60585.0,0.012]
[1723385726350,0.52542892,60586.0,60585.0,0.012]
[1723385726759,0.75650492,60586.0,60585.0,0.002]
[1723385727433,1.14926013,60586.0,60585.0,0.002]
[1723385727664,1.09988092,60586.0,60585.0,0.002]
[1723385728415,1.01058092,60586.0,60585.0,0.002]
[1723385728624,0.98758092,60586.0,60585.0,0.002]
[1723385730002,1.01058092,60586.0,60585.0,0.002]
[1723385732750,2.37528092,60586.0,60585.0,0.002]
[1723385733064,2.42465649,60586.0,60585.0,0.002]
[1723385733266,2.80382859,60586.0,60585.0,0.002]
[1723385733468,2.70669693,60586.0,60585.0,0.002]
[1723385733663,2.814334,60586.0,60585.0,0.002]
[1723385734210,3.04541,60586.0,60585.0,0.002]
[1723385734426,3.466334,60586.0,60585.0,0.001]
[1723385734641,2.9844837,60586.0,60585.0,0.002]
[1723385734867,2.61341704,60586.0,60585.0,0.002]
[1723385735066,2.38898092,60586.0,60585.0,0.003]
[1723385735272,2.43836009,60586.0,60585.0,0.003]
[1723385736865,2.38898092,60586.0,60585.0,0.003]
[1723385737769,2.43836009,60586.0,60585.0,0.003]
[1723385738187,2.38898092,60586.0,60585.0,0.003]
[1723385738355,2.43836066,60586.0,60585.0,0.003]
[1723385738592,2.38898092,60586.0,60585.0,0.003]
[1723385738879,1.12358092,60586.0,60585.0,0.003]
[1723385739082,1.20542738,60586.0,60585.0,0.003]
[1723385739241,1.258743,60586.0,60585.0,0.003]
[1723385739441,1.30812274,60586.0,60585.0,0.003]
[1723385740103,1.39742274,60586.0,60585.0,0.003]
[1723385740428,2.15123262,60586.0,60585.0,0.003]
[1723385740541,1.53592249,60586.0,60585.0,0.003]
[1723385740744,1.41247313,60586.0,60585.0,0.003]
[1723385741331,2.37354913,60586.0,60585.0,0.003]
[1723385741465,0.808951,60572.0,60571.0,0.0684]
[1723385741667,0.99576592,60572.0,60571.0,0.0684]
[1723385742701,1.050098,60571.0,60570.0,0.0009141]
[1723385742853,1.51986354,60571.0,60570.0,0.0009141]
[1723385743052,1.44576387,60571.0,60570.0,0.0009141]
[1723385743299,1.53506387,60571.0,60570.0,0.0009141]
[1723385743628,1.65857523,60571.0,60570.0,0.0009141]
[1723385744138,1.76834166,60571.0,60570.0,0.0009141]
[1723385744294,1.82314771,60571.0,60570.0,0.0009141]
[1723385744462,1.71363635,60571.0,60570.0,0.0019141]
[1723385745519,1.69963635,60571.0,60570.0,0.0009141]
[1723385745762,1.72366608,60571.0,60570.0,0.0009141]
[1723385745924,1.73766608,60571.0,60570.0,0.0019141]
[1723385746515,1.86111648,60571.0,60570.0,0.0019141]
[1723385746719,1.85111648,60571.0,60570.0,0.0019141]
[1723385746920,1.83711648,60571.0,60570.0,0.0019141]
[1723385747139,1.71366608,60571.0,60570.0,0.0019141]
[1723385747538,1.85109793,60571.0,60570.0,0.0019141]
[1723385747741,3.11649793,60571.0,60570.0,0.0019141]
[1723385747947,3.11151715,60571.0,60570.0,0.0019141]
[1723385748416,3.12551715,60571.0,60570.0,0.0019141]
[1723385749014,2.94724952,60571.0,60570.0,0.0019141]
[1723385749253,3.02129275,60571.0,60570.0,0.0019141]
[1723385749674,2.56154237,60571.0,60570.0,0.0019141]
[1723385749889,2.47224237,60571.0,60570.0,0.0685141]
[1723385750098,2.42455611,60571.0,60570.0,0.0685141]
[1723385750941,2.37519914,60571.0,60570.0,0.0685141]
[1723385751354,2.44755611,60571.0,60570.0,0.0685141]
[1723385751792,2.39819914,60571.0,60570.0,0.0685141]
[1723385759261,2.39819914,60571.0,60570.0,0.0019141]
[1723385760170,2.88358184,60571.0,60570.0,0.0019141]
[1723385760580,2.99268962,60571.0,60570.0,0.0019141]
[1723385760807,3.06671,60571.0,60570.0,0.0019141]
[1723385761010,3.01207827,60571.0,60570.0,0.0019141]
[1723385761223,3.06709609,60571.0,60570.0,0.0019141]
[1723385761443,3.81709609,60571.0,60570.0,0.0019141]
[1723385761653,3.74307571,60571.0,60570.0,0.0019141]
[1723385762021,3.74307571,60571.0,60556.0,0.0666]
[1723385762022,0.0801,60561.0,60556.0,0.0666]
[1723385762221,0.0801,60561.0,60534.0,0.09184646]
[1723385762222,0.115608,60549.0,60546.0,0.01]
[1723385762468,0.97307392,60549.0,60546.0,0.0836]
[1723385762675,0.99607392,60549.0,60546.0,0.0836]
[1723385762965,0.99607392,60549.0,60548.0,0.067513]
[1723385763526,0.99707392,60549.0,60548.0,0.067513]
[1723385764333,0.99907392,60549.0,60548.0,0.067513]
[1723385766260,1.23029092,60549.0,60548.0,0.000913]
[1723385766471,3.24569092,60549.0,60548.0,0.000913]
[1723385766671,2.60569092,60549.0,60548.0,0.000913]
[1723385767044,2.71535824,60549.0,60548.0,0.000913]
[1723385767248,2.6582366,60549.0,60548.0,0.000913]
[1723385767466,2.66731021,60549.0,60548.0,0.000913]
[1723385767666,2.69331021,60549.0,60548.0,0.000913]
[1723385767872,2.63790864,60549.0,60548.0,0.000913]
[1723385768067,2.62590864,60549.0,60548.0,0.000913]
[1723385768875,2.63990864,60549.0,60548.0,0.000913]
[1723385769394,2.62590864,60549.0,60548.0,0.000913]
[1723385769630,2.63990864,60549.0,60548.0,0.000913]
[1723385769848,2.39869164,60549.0,60548.0,0.000913]
[1723385770011,2.39869164,60549.0,60548.0,0.067113]
[1723385770012,2.04447464,60549.0,60548.0,0.067113]
[1723385770218,2.03047464,60549.0,60548.0,0.067113]
[1723385770789,2.04447464,60549.0,60548.0,0.067113]
[1723385771182,2.03047464,60549.0,60548.0,0.067113]
[1723385771383,0.76507464,60549.0,60548.0,0.067113]
[1723385771587,0.76507464,60549.0,60548.0,0.159213]
[1723385771588,0.19181492,60549.0,60548.0,0.159213]
[1723385771811,0.53863992,60549.0,60548.0,0.159213]
[1723385772015,0.30742292,60549.0,60548.0,0.159213]
[1723385772215,0.19181492,60549.0,60548.0,0.159213]
[1723385772446,0.028,60549.0,60548.0,0.390434]
[1723385772646,0.028,60549.0,60548.0,0.727265]
[1723385772895,0.028,60549.0,60548.0,0.737265]
[1723385773412,0.028,60549.0,60548.0,0.506044]
[1723385773587,0.028,60549.0,60548.0,0.737265]
[1723385773588,0.014,60549.0,60548.0,0.737265]
[1723385773764,0.115596,60556.0,60555.0,0.0921]
[1723385774086,0.702476,60560.0,60559.0,0.1583]
[1723385774087,0.818063,60560.0,60559.0,0.1583]
[1723385774245,0.586887,60560.0,60559.0,0.1583]
[1723385774441,0.4713,60560.0,60559.0,0.1583]
[1723385774665,0.586887,60560.0,60559.0,0.1583]
[1723385775253,0.594887,60560.0,60559.0,0.1583]
[1723385775852,0.826062,60560.0,60559.0,0.1583]
[1723385776056,0.008,60560.0,60559.0,0.736247]
[1723385777429,0.018,60560.0,60559.0,0.736247]
[1723385777657,0.01,60560.0,60559.0,0.736247]
[1723385777800,0.115573,60568.0,60567.0,0.01]
[1723385778009,0.27938792,60568.0,60567.0,0.1583]
[1723385778486,0.16381492,60568.0,60567.0,0.1583]
[1723385778900,0.16981492,60568.0,60567.0,0.1583]
[1723385779149,0.28538692,60568.0,60567.0,0.1583]
[1723385779316,0.51653192,60568.0,60567.0,0.1583]
[1723385779731,0.74767692,60568.0,60567.0,0.0662]
[1723385779907,0.51653192,60568.0,60567.0,0.0662]
[1723385780101,0.53953192,60568.0,60567.0,0.0662]
[1723385780575,0.53753192,60568.0,60567.0,0.0662]
[1723385780728,0.76467692,60568.0,60567.0,0.0662]
[1723385780927,0.77067692,60568.0,60567.0,0.0662]
[1723385781133,0.77867692,60568.0,60567.0,0.0662]
[1723385781337,1.00982192,60568.0,60567.0,0.0662]
[1723385781537,0.77267692,60568.0,60567.0,0.0662]
[1723385781804,0.78267692,60568.0,60567.0,0.0662]
[1723385782007,0.78267692,60568.0,60559.0,0.0009141]
[1723385782008,0.346752,60562.0,60561.0,0.0662]
[1723385782117,0.59241338,60562.0,60561.0,0.0662]
[1723385782322,0.82358138,60562.0,60561.0,0.0662]
[1723385782767,0.346762,60560.0,60559.0,0.0671141]
[1723385782967,0.51057692,60560.0,60559.0,0.0009141]
[1723385783162,2.46669641,60560.0,60559.0,0.0009141]
[1723385783567,2.52120389,60560.0,60559.0,0.0009141]
[1723385783814,2.61974686,60560.0,60559.0,0.0009141]
[1723385784021,3.53022083,60560.0,60559.0,0.0009141]
[1723385784237,3.51217786,60560.0,60559.0,0.0009141]
[1723385784608,3.54017786,60560.0,60559.0,0.0009141]
[1723385785031,3.52617786,60560.0,60559.0,0.0009141]
[1723385785240,2.86617786,60560.0,60559.0,0.0009141]
[1723385785414,2.88017786,60560.0,60559.0,0.0009141]
[1723385786053,2.77480837,60560.0,60559.0,0.0009141]
[1723385786412,2.76080837,60560.0,60559.0,0.0009141]
[1723385787370,0.809259,60549.0,60548.0,0.000913]
[1723385787594,1.19457392,60549.0,60548.0,0.000913]
[1723385788689,1.20657392,60549.0,60548.0,0.000913]
[1723385789073,1.01807392,60549.0,60548.0,0.000913]
[1723385789275,2.28347392,60549.0,60548.0,0.000913]
[1723385790899,2.29285742,60549.0,60548.0,0.000913]
[1723385791312,2.06164042,60549.0,60548.0,0.000913]
[1723385795376,0.54202342,60549.0,60548.0,0.078213]
[1723385796974,0.54202342,60549.0,60548.0,0.068213]
[1723385796975,1.02745742,60549.0,60548.0,0.068213]
[1723385797516,0.79624042,60549.0,60548.0,0.068213]
[1723385799383,1.02745742,60549.0,60548.0,0.068213]
[1723385800372,0.79624042,60549.0,60548.0,0.068213]
[1723385802977,0.56502342,60549.0,60548.0,0.148613]
[1723385803507,0.54202342,60549.0,60548.0,0.158613]
[1723385803777,0.54202342,60549.0,60548.0,0.1661646]
[1723385805829,0.31080642,60549.0,60548.0,0.1661646]
[1723385807368,0.022,60549.0,60548.0,1.1126008]
[1723385807635,0.022,60549.0,60548.0,1.1226008]
[1723385808108,0.000831,60559.0,60558.0,0.356774]
[1723385808347,0.000831,60559.0,60558.0,0.97144]
[1723385808610,0.000831,60559.0,60558.0,0.87490539]
[1723385808829,0.16464592,60559.0,60558.0,0.87490539]
[1723385809375,0.16464592,60559.0,60558.0,0.730257]
[1723385809638,0.16464592,60559.0,60558.0,0.73776934]
[1723385809867,0.000831,60570.0,60569.0,0.12557]
[1723385810114,0.16464592,60570.0,60569.0,0.26787]
[1723385810604,0.16464592,60570.0,60569.0,0.15975381]
[1723385811080,0.28021392,60570.0,60569.0,0.15975381]
[1723385811551,0.16464592,60570.0,60569.0,0.15975381]
[1723385811810,0.51135092,60570.0,60569.0,0.15975381]
[1723385812054,0.51335092,60570.0,60569.0,0.15975381]
[1723385812517,0.51135092,60570.0,60569.0,0.15975381]
[1723385813033,0.51735092,60570.0,60569.0,0.16075381]
[1723385813286,0.51735092,60570.0,60569.0,0.15075381]
[1723385813793,0.51735092,60570.0,60569.0,0.1433]
[1723385814034,0.51735092,60570.0,60569.0,0.16075381]
[1723385814352,0.74248792,60570.0,60569.0,0.14975381]
[1723385814559,0.74648792,60570.0,60569.0,0.07215381]
[1723385815100,0.74248792,60570.0,60569.0,0.0647]
[1723385815327,0.74648792,60570.0,60569.0,0.0647]
[1723385815602,0.74648792,60570.0,60569.0,0.07214653]
[1723385815815,0.75048792,60570.0,60569.0,0.00744653]
[1723385816079,1.00462492,60570.0,60569.0,0.00744653]
[1723385816334,0.57787,60567.0,60566.0,0.01]
[1723385816588,0.74168492,60567.0,60566.0,0.01]
[1723385817068,0.74168492,60567.0,60566.0,0.01738592]
[1723385817292,0.74168492,60567.0,60566.0,0.01]
[1723385817519,0.346734,60565.0,60564.0,0.0647]
[1723385817748,0.51054892,60565.0,60564.0,0.0647]
[1723385818493,0.51054892,60565.0,60564.0,0.0747]
[1723385818729,0.51154892,60565.0,60564.0,0.0747]
[1723385819680,0.51054892,60565.0,60564.0,0.0647]
[1723385819910,0.51054892,60565.0,60564.0,0.0747]
[1723385820119,0.51054892,60565.0,60564.0,0.0647]
[1723385820325,0.51354892,60565.0,60564.0,0.0647]
[1723385820535,0.74470492,60565.0,60564.0,0.0647]
[1723385820774,0.53654892,60565.0,60564.0,0.0647]
[1723385820975,0.54154892,60565.0,60564.0,0.0647]
[1723385821185,0.28739292,60565.0,60564.0,0.0647]
[1723385821399,0.51854892,60565.0,60564.0,0.0647]
[1723385821603,0.74470492,60565.0,60564.0,0.0647]
[1723385821817,0.74970492,60565.0,60564.0,0.0647]
[1723385822253,0.74670492,60565.0,60564.0,0.0647]